bitfinex/quotes_SOLUSD_20250719
["timestamp","ask_amount","ask_price","bid_price","bid_amount"]
[1752896063259,0.06,177.59,177.58,126.76]
[1752896063455,0.06,177.59,177.58,127.42]
[1752896063670,1.97846306,177.59,177.58,127.42]
[1752896063859,1.97846306,177.59,177.58,126.76]
[1752896064168,0.06,177.59,177.58,126.76]
[1752896064477,1.97846306,177.59,177.58,127.42]
[1752896068383,1.97846306,177.59,177.58,126.76]
[1752896069884,0.06,177.59,177.58,126.76]
[1752896070063,1.97846306,177.59,177.58,126.76]
[1752896070656,1.97846306,177.59,177.58,127.42]
[1752896073184,0.06,177.59,177.58,127.42]
[1752896073360,1.97846306,177.59,177.58,127.42]
[1752896074780,1.97846306,177.59,177.58,87.3]
[1752896074982,1.97846306,177.59,177.58,126.96]
[1752896078587,0.06,177.59,177.58,126.96]
[1752896078800,2.64846306,177.59,177.58,87.3]
[1752896079087,2.64846306,177.59,177.58,152.94]
[1752896079465,1.97846306,177.59,177.58,152.94]
[1752896079666,0.06,177.59,177.58,152.94]
[1752896079894,0.06,177.59,177.58,153.61]
[1752896080693,1.97846306,177.59,177.58,113.3]
[1752896080893,2.64846306,177.59,177.58,152.94]
[1752896081196,0.06,177.59,177.58,127.64]
[1752896083176,0.06,177.59,177.58,133.27126478]
[1752896083371,0.06,177.59,177.58,150.05594875]
[1752896089097,1.93778369,177.6,177.59,87.24]
[1752896089302,0.06,177.6,177.59,87.24]
[1752896089507,2.60778369,177.6,177.59,126.88]
[1752896089683,2.60778369,177.6,177.59,152.88]
[1752896089876,0.73,177.6,177.59,152.88]
[1752896090079,2.60778369,177.6,177.59,152.88]
[1752896090290,10.11891845,177.6,177.59,152.88]
[1752896091500,9.44891845,177.6,177.59,152.88]
[1752896092290,1.93778369,177.6,177.59,152.88]
[1752896094409,0.06,177.6,177.59,152.88]
[1752896094606,1.93778369,177.6,177.59,152.88]
[1752896096204,15.74954908,177.6,177.59,113.24]
[1752896096511,15.74954908,177.6,177.59,152.82]
[1752896099289,8.23841432,177.6,177.59,152.82]
[1752896099488,7.56841432,177.6,177.59,152.82]
[1752896100346,7.56841432,177.6,177.59,126.82]
[1752896100814,1.93778369,177.6,177.59,39.58]
[1752896101389,0.06,177.6,177.59,39.58]
[1752896101900,1.93778369,177.6,177.59,39.58]
[1752896105001,8.2384421,177.6,177.59,39.56]
[1752896105220,15.74957686,177.6,177.59,39.56]
[1752896105401,6.36065841,177.6,177.59,39.56]
[1752896105598,15.74957686,177.6,177.59,39.56]
[1752896106816,8.2384421,177.6,177.59,127.16]
[1752896107216,15.74957686,177.6,177.59,127.16]
[1752896109517,6.36065841,177.6,177.59,127.16]
[1752896109711,15.74957686,177.6,177.59,127.16]
[1752896110922,8.2384421,177.6,177.59,127.16]
[1752896111611,1.93778369,177.6,177.59,127.16]
[1752896112029,1.93778369,177.6,177.59,87.6]
[1752896112212,2.62778369,177.6,177.59,127.12]
[1752896112416,1.93778369,177.6,177.59,127.12]
[1752896113224,2.62778369,177.6,177.59,127.12]
[1752896113924,1.93778369,177.6,177.59,127.12]
[1752896114522,2.62778369,177.6,177.59,127.12]
[1752896114703,5.69063063,177.6,177.59,127.12]
[1752896114906,7.56841432,177.6,177.59,127.12]
[1752896115335,5.69063063,177.6,177.59,127.12]
[1752896115500,7.56841432,177.6,177.59,127.12]
[1752896116427,8.25841432,177.6,177.59,127.12]
[1752896118324,15.76954908,177.6,177.59,127.12]
[1752896118508,8.25841432,177.6,177.59,127.12]
[1752896119336,1.93778369,177.6,177.59,127.8]
[1752896120235,1.93778369,177.6,177.59,127.12]
[1752896120402,1.93778369,177.6,177.59,127.8]
[1752896120607,1.93778369,177.6,177.59,127.12]
[1752896122338,1.93778369,177.6,177.58,0.71]
[1752896122339,10.13891845,177.6,177.58,0.03]
[1752896122543,2.56778369,177.59,177.58,0.03]
[1752896122758,10.07891845,177.59,177.57,39.51]
[1752896123031,10.07891845,177.58,177.57,39.51]
[1752896123445,2.56778369,177.58,177.57,39.51]
[1752896123939,8.19904847,177.58,177.57,39.51]
[1752896125344,15.71018323,177.58,177.54,87.63]
[1752896125513,9.38891845,177.55,177.54,0.03]
[1752896125713,1.87778369,177.55,177.54,39.55]
[1752896125946,7.50999996,177.55,177.54,39.55]
[1752896126244,15.71113472,177.55,177.54,39.55]
[1752896126617,6.32221627,177.55,177.54,39.55]
[1752896126823,15.71113472,177.55,177.54,39.55]
[1752896129252,15.71113472,177.55,177.54,0.03]
[1752896129748,15.71113472,177.55,177.54,39.57]
[1752896133919,15.02113472,177.55,177.54,39.57]
[1752896135246,5.63221627,177.55,177.54,39.57]
[1752896135428,7.50999996,177.55,177.54,40.25]
[1752896136845,7.50999996,177.55,177.54,39.57]
[1752896138142,7.50999996,177.55,177.54,0.03]
[1752896138143,15.68113472,177.55,177.54,0.03]
[1752896138625,15.02113472,177.55,177.54,0.03]
[1752896138827,7.50999996,177.55,177.54,0.03]
[1752896139441,7.50999996,177.55,177.54,0.7]
[1752896143853,15.02113472,177.55,177.54,0.7]
[1752896145232,7.50999996,177.55,177.54,0.7]
[1752896145643,1.87778369,177.55,177.54,0.7]
[1752896147431,7.57113476,177.6,177.54,88.3]
[1752896147630,1.87778369,177.57,177.55,40.31]
[1752896147830,1.87778369,177.57,177.56,0.67]
[1752896149649,5.6310347,177.59,177.56,0.67]
[1752896149828,1.87778369,177.57,177.55,87.6]
[1752896150023,1.87778369,177.56,177.55,87.6]
[1752896150426,1.87778369,177.56,177.55,88.27]
[1752896150848,1.87778369,177.56,177.55,127.89]
[1752896151025,1.87778369,177.56,177.55,26.0]
[1752896151453,1.87778369,177.56,177.55,65.6]
[1752896152878,1.87778369,177.56,177.55,66.27]
[1752896153151,1.87778369,177.56,177.55,65.6]
[1752896153947,7.50968276,177.56,177.55,39.6]
[1752896154529,8.16968276,177.56,177.55,39.6]
[1752896156132,15.68081752,177.56,177.55,39.6]
[1752896156657,5.63189907,177.56,177.55,40.27]
[1752896156834,7.50968276,177.56,177.55,40.27]
[1752896157050,7.50968276,177.56,177.55,39.6]
[1752896161446,5.63189907,177.56,177.55,39.6]
[1752896161775,7.50968276,177.56,177.55,39.6]
[1752896165472,5.63189907,177.56,177.55,39.6]
[1752896165659,1.87778369,177.56,177.55,40.27]
[1752896167452,1.87778369,177.56,177.55,40.3]
[1752896168952,1.87778369,177.56,177.55,127.9]
[1752896169152,0.06,177.57,177.55,127.9]
[1752896169371,1.87778369,177.56,177.55,127.23]
[1752896169578,0.06,177.57,177.55,127.23]
[1752896169883,1.87778369,177.56,177.55,127.23]
[1752896170581,1.87778369,177.56,177.55,127.93]
[1752896172383,0.06,177.57,177.55,48.1842]
[1752896172679,1.93778369,177.57,177.56,66.32]
[1752896177757,1.93778369,177.57,177.56,153.92]
[1752896178180,0.06,177.57,177.56,153.92]
[1752896178484,1.93778369,177.57,177.56,153.92]
[1752896180358,1.93778369,177.57,177.56,153.88]
[1752896182154,0.06,177.57,177.56,153.88]
[1752896182479,1.93778369,177.57,177.56,153.88]
[1752896184781,0.06,177.57,177.56,153.88]
[1752896184958,1.93778369,177.57,177.56,114.3]
[1752896185160,1.93778369,177.57,177.56,153.86]
[1752896188263,0.06,177.57,177.56,153.86]
[1752896188472,1.93778369,177.57,177.56,153.86]
[1752896189393,1.93778369,177.57,177.56,153.84]
[1752896192590,0.06,177.57,177.56,153.84]
[1752896193214,1.93778369,177.57,177.56,153.84]
[1752896193711,1.93778369,177.57,177.56,114.3]
[1752896193876,1.93778369,177.57,177.56,154.0]
[1752896195281,1.93778369,177.57,177.56,133.63189907]
[1752896195282,0.06,177.57,177.56,133.63189907]
[1752896195600,0.06,177.57,177.56,128.0]
[1752896196308,0.06,177.57,177.56,88.3]
[1752896196309,1.93778369,177.57,177.56,88.3]
[1752896196473,0.06,177.57,177.56,128.12]
[1752896197193,0.06,177.57,177.56,133.75189907]
[1752896197390,0.06,177.57,177.56,137.17098276]
[1752896197932,0.06,177.57,177.56,89.8413]
[1752896198088,0.06,177.57,177.56,130.3044899]
[1752896198287,0.06,177.57,177.56,129.7413]
[1752896198602,0.06,177.57,177.56,154.03566673]
[1752896198771,0.06,177.57,177.56,152.15788304]
[1752896200195,0.06,177.57,177.56,135.37319907]
[1752896200382,0.06,177.57,177.56,95.47319907]
[1752896200588,0.06,177.57,177.56,135.91638897]
[1752896200790,0.06,177.57,177.56,135.35319907]
[1752896201590,0.06,177.57,177.56,95.47319907]
[1752896201794,0.06,177.57,177.56,135.91638897]
[1752896201990,0.06,177.57,177.56,135.35319907]
[1752896202495,1.93778369,177.57,177.56,129.7213]
[1752896202890,0.06,177.57,177.56,135.35319907]
[1752896204797,1.93778369,177.57,177.56,128.18]
[1752896205000,1.93778369,177.57,177.56,128.16]
[1752896208492,0.06,177.57,177.56,128.16]
[1752896208712,1.93778369,177.57,177.56,128.16]
[1752896209408,1.93778369,177.57,177.56,88.3]
[1752896209587,1.93778369,177.57,177.56,128.14]
[1752896210107,1.93778369,177.57,177.56,154.14]
[1752896212327,0.06,177.57,177.56,154.14]
[1752896212702,1.93778369,177.57,177.56,154.14]
[1752896213919,1.93778369,177.57,177.56,154.12]
[1752896216120,0.06,177.57,177.56,154.12]
[1752896216311,1.93778369,177.57,177.56,154.12]
[1752896218804,0.06,177.57,177.56,154.12]
[1752896219002,1.93778369,177.57,177.56,154.12]
[1752896220209,0.06,177.57,177.56,154.12]
[1752896220443,1.93778369,177.57,177.56,154.12]
[1752896220745,1.93778369,177.57,177.56,153.42]
[1752896221526,0.06,177.57,177.56,154.12]
[1752896222026,1.93778369,177.57,177.56,154.12]
[1752896226407,0.06,177.57,177.56,154.12]
[1752896226708,1.93778369,177.57,177.56,154.12]
[1752896228212,0.06,177.57,177.56,133.75189907]
[1752896233732,0.06,177.57,177.56,150.53658304]
[1752896233933,1.93778369,177.6,177.59,26.0]
[1752896234123,1.93778369,177.6,177.59,153.3]
[1752896234320,0.06,177.6,177.59,154.02]
[1752896234834,1.93778369,177.6,177.59,154.02]
[1752896235221,1.93778369,177.6,177.59,153.3]
[1752896236527,0.06,177.6,177.59,153.3]
[1752896236729,1.93778369,177.6,177.59,153.3]
[1752896237646,0.06,177.6,177.59,153.3]
[1752896237842,1.93778369,177.6,177.59,153.3]
[1752896238148,2.65778369,177.6,177.59,153.3]
[1752896238437,1.93778369,177.6,177.59,153.3]
[1752896238947,0.06,177.6,177.59,153.3]
[1752896239324,1.93778369,177.6,177.59,154.02]
[1752896240544,0.06,177.6,177.59,154.02]
[1752896240745,1.93778369,177.6,177.59,154.02]
[1752896242137,1.93778369,177.6,177.59,153.3]
[1752896242424,10.16891845,177.6,177.59,113.54]
[1752896242638,0.78,177.6,177.59,153.26]
[1752896242972,10.16891845,177.6,177.59,153.26]
[1752896243450,10.16891845,177.6,177.59,113.54]
[1752896243633,10.16891845,177.6,177.59,153.46]
[1752896244345,15.79954908,177.6,177.59,127.46]
[1752896244543,10.16891845,177.6,177.59,127.46]
[1752896245742,10.16891845,177.6,177.59,39.92]
[1752896247149,15.79954908,177.6,177.59,39.92]
[1752896251153,8.28841432,177.6,177.59,39.92]
[1752896251340,15.79954908,177.6,177.59,39.92]
[1752896251651,15.79954908,177.6,177.59,127.52]
[1752896255431,15.79954908,177.6,177.56,87.6]
[1752896255648,1.87778369,177.57,177.56,87.6]
[1752896255832,2.59778369,177.57,177.56,127.44]
[1752896256937,15.74050036,177.57,177.56,127.44]
[1752896257127,15.74050036,177.57,177.56,87.6]
[1752896257333,8.2293656,177.57,177.56,127.44]
[1752896258561,15.74050036,177.57,177.56,127.44]
[1752896259556,8.2293656,177.57,177.56,127.44]
[1752896260334,6.35158191,177.57,177.56,127.44]
[1752896260554,14.13657657,177.6,177.56,154.15]
[1752896260555,0.06,177.6,177.56,154.15]
[1752896260758,0.06,177.6,177.57,26.71]
[1752896260959,7.56841996,177.6,177.58,39.9]
[1752896261143,1.87778369,177.59,177.58,40.61]
[1752896262158,0.06,177.6,177.58,40.61]
[1752896262363,0.06,177.6,177.59,1.27309476]
[1752896262563,0.06,177.6,177.59,19.93556242]
[1752896262755,0.06,177.63,177.59,19.93556242]
[1752896262756,0.06,177.63,177.62,42.78468397]
[1752896263070,0.06,177.64,177.62,85.16546732]
[1752896263269,0.06,177.64,177.63,17.49468397]
[1752896263446,0.06,177.64,177.63,59.31246766]
[1752896263866,0.06,177.64,177.63,59.87543562]
[1752896264461,0.06,177.64,177.63,63.6273316]
[1752896264763,0.06,177.64,177.63,65.50511529]
[1752896264969,0.06,177.64,177.63,66.55876582]
[1752896266252,0.06,177.64,177.63,63.6273316]
[1752896266456,0.06,177.64,177.63,99.99699496]
[1752896268481,0.06,177.64,177.63,99.86734241]
[1752896268775,2.99143422,177.66,177.63,43.14265844]
[1752896268984,2.99143422,177.65,177.64,40.67]
[1752896269375,2.99143422,177.65,177.64,82.60551593]
[1752896270064,0.06,177.65,177.64,82.60551593]
[1752896272197,0.06,177.65,177.64,99.3901999]
[1752896273070,2.99143422,177.65,177.64,42.64551593]
[1752896273270,2.99143422,177.65,177.64,81.85551593]
[1752896274062,0.06,177.65,177.64,83.1284522]
[1752896274399,2.93143422,177.65,177.64,83.1284522]
[1752896274562,2.99143422,177.66,177.64,82.42804406]
[1752896274762,2.93143422,177.65,177.64,81.71804406]
[1752896274971,2.99143422,177.66,177.65,41.73869228]
[1752896275182,2.99143422,177.66,177.65,67.73869228]
[1752896275484,0.06,177.66,177.65,65.52644817]
[1752896275672,2.99143422,177.66,177.65,65.52644817]
[1752896276273,2.99143422,177.66,177.65,65.52325293]
[1752896278287,2.93143422,177.66,177.65,193.02325293]
[1752896278666,2.93143422,177.66,177.65,190.04184162]
[1752896280893,6.32785483,177.69,177.65,190.04184162]
[1752896281088,5.62785483,177.69,177.66,0.71]
[1752896281268,2.93143422,177.67,177.66,35.82982474]
[1752896281472,2.93143422,177.67,177.66,75.78982474]
[1752896281884,2.93143422,177.67,177.66,76.49982474]
[1752896282701,6.3278922,177.69,177.66,76.49982474]
[1752896282881,2.93143422,177.67,177.66,76.49982474]
[1752896283210,6.3278922,177.69,177.67,33.01745058]
[1752896283375,6.3278922,177.69,177.68,39.94]
[1752896283786,6.3278922,177.69,177.68,72.95559232]
[1752896284396,9.25932642,177.69,177.68,160.55559232]
[1752896284800,2.93143422,177.69,177.68,160.55559232]
[1752896285009,3.63143422,177.69,177.68,160.55559232]
[1752896286293,9.25921293,177.69,177.68,160.55559232]
[1752896289803,6.32777871,177.69,177.68,160.55559232]
[1752896290110,8.55921293,177.69,177.68,72.95559232]
[1752896292205,9.26921293,177.69,177.68,72.95559232]
[1752896293691,12.20064715,177.69,177.68,33.01559232]
[1752896293887,12.20064715,177.69,177.63,0.03]
[1752896294107,2.93143422,177.66,177.64,39.9]
[1752896294501,0.71,177.65,177.64,39.9]
[1752896294710,0.71,177.65,177.64,127.5]
[1752896295016,3.64143422,177.66,177.64,127.5]
[1752896295311,2.93143422,177.65,177.64,127.5]
[1752896296619,0.06,177.7,177.64,128.2]
[1752896296915,2.93143422,177.67,177.66,26.0]
[1752896297106,0.77,177.7,177.66,66.58]
[1752896297413,2.93143422,177.68,177.67,0.7]
[1752896298205,2.93143422,177.68,177.66,65.88]
[1752896298506,2.93143422,177.67,177.66,66.58]
[1752896302222,2.93143422,177.67,177.66,154.18]
[1752896302930,2.93143422,177.67,177.66,153.48]
[1752896303421,2.93143422,177.67,177.66,154.18]
[1752896303611,0.06,177.7,177.69,26.0]
[1752896303811,2.99143422,177.7,177.69,153.44]
[1752896304214,0.06,177.7,177.69,154.14]
[1752896304933,2.99143422,177.7,177.69,154.14]
[1752896305301,0.06,177.7,177.69,154.14]
[1752896305500,2.99143422,177.7,177.69,154.14]
[1752896306222,6.0163337,177.74,177.69,154.14]
[1752896306408,2.93143422,177.7,177.69,153.44]
[1752896307099,2.93143422,177.7,177.69,154.14]
[1752896307914,6.0163337,177.74,177.69,154.14]
[1752896307915,0.06,177.75,177.7,1.6398]
[1752896308126,2.93143422,177.72,177.7,88.3]
[1752896308330,0.71,177.74,177.73,26.0]
[1752896308523,3.64143422,177.74,177.73,65.78]
[1752896308704,3.64143422,177.74,177.73,26.0]
[1752896310406,2.93143422,177.74,177.73,26.0]
[1752896310806,3.64143422,177.74,177.73,26.0]
[1752896311210,6.33619556,177.74,177.73,26.0]
[1752896311408,9.26762978,177.74,177.73,26.0]
[1752896312340,9.26762978,177.74,177.72,39.78]
[1752896313046,2.93143422,177.73,177.72,39.78]
[1752896313845,2.93143422,177.73,177.72,127.38]
[1752896315635,6.33619556,177.74,177.72,127.38]
[1752896315813,2.93143422,177.73,177.72,127.38]
[1752896318023,6.33619556,177.74,177.72,127.38]
[1752896318234,2.93143422,177.73,177.72,127.38]
[1752896320211,2.93143422,177.73,177.72,127.41]
[1752896320413,12.19938056,177.73,177.72,87.63]
[1752896321024,12.19938056,177.73,177.72,0.03]
[1752896325571,11.48938056,177.73,177.72,0.03]
[1752896325716,12.19938056,177.73,177.72,87.63]
[1752896325916,12.19938056,177.73,177.72,0.03]
[1752896332937,15.71801187,177.73,177.72,0.03]
[1752896334623,15.00801187,177.73,177.72,0.71]
[1752896334829,15.00801187,177.73,177.72,0.03]
[1752896335029,15.71801187,177.73,177.72,0.03]
[1752896335955,15.71801187,177.73,177.7,87.6]
[1752896336160,1.87629995,177.71,177.68,0.03]
[1752896336455,9.38149975,177.69,177.68,0.03]
[1752896336969,6.57658642,177.69,177.68,0.03]
[1752896338147,12.20436513,177.69,177.68,0.03]
[1752896338724,26.27381191,177.69,177.64,0.03]
[1752896338925,2.93329321,177.65,177.64,87.63]
[1752896339139,3.64329321,177.65,177.64,0.03]
[1752896340055,9.27233908,177.65,177.64,0.03]
[1752896341233,8.56233908,177.65,177.64,0.03]
[1752896341949,9.27233908,177.65,177.64,0.03]
[1752896343150,5.86658642,177.64,177.63,0.03]
[1752896343353,3.64329321,177.64,177.63,0.03]
[1752896344149,9.27265596,177.64,177.63,0.03]
[1752896344565,6.33936275,177.64,177.63,0.03]
[1752896344750,9.27265596,177.64,177.63,0.03]
[1752896345138,8.56265596,177.64,177.63,0.03]
[1752896345340,8.56265596,177.64,177.63,0.71]
[1752896345561,8.56265596,177.64,177.63,0.03]
[1752896349338,9.24265596,177.64,177.63,0.03]
[1752896351639,8.56265596,177.64,177.63,0.03]
[1752896353954,2.93329321,177.65,177.63,40.41]
[1752896354145,2.93329321,177.65,177.63,127.35]
[1752896354346,2.93329321,177.65,177.64,0.66]
[1752896358144,5.62841579,177.67,177.64,88.26]
[1752896358348,2.93329321,177.65,177.64,87.6]
[1752896358570,5.62841579,177.67,177.64,87.6]
[1752896358879,2.93329321,177.65,177.64,87.6]
[1752896359484,2.93329321,177.65,177.64,88.26]
[1752896360482,5.62841579,177.67,177.64,88.26]
[1752896360656,2.93329321,177.65,177.64,87.6]
[1752896361279,2.93329321,177.65,177.64,88.26]
[1752896363388,0.74,177.69,177.67,26.0]
[1752896363560,0.68,177.68,177.67,113.6]
[1752896364654,3.61329321,177.68,177.67,113.6]
[1752896365256,12.17468187,177.68,177.63,0.03]
[1752896365461,2.93329321,177.64,177.63,0.03]
[1752896366880,3.61329321,177.64,177.63,0.03]
[1752896367094,0.68,177.64,177.63,0.03]
[1752896367390,3.61329321,177.64,177.63,0.03]
[1752896367592,0.06,177.65,177.63,0.03]
[1752896367767,2.93329321,177.64,177.63,0.03]
[1752896368377,2.93329321,177.64,177.63,0.69]
[1752896368687,0.06,177.65,177.64,26.0]
[1752896368864,0.06,177.65,177.64,66.18]
[1752896369065,2.99329321,177.65,177.64,26.66]
[1752896369268,2.99329321,177.65,177.64,66.84]
[1752896371092,0.06,177.65,177.64,66.84]
[1752896372163,0.06,177.65,177.64,75.40265596]
[1752896373072,0.06,177.65,177.64,72.46936275]
[1752896373296,0.06,177.65,177.64,75.40265596]
[1752896374062,0.06,177.65,177.64,72.46936275]
[1752896374264,0.06,177.65,177.64,66.84]
[1752896374571,0.06,177.65,177.64,66.82]
[1752896374769,2.99329321,177.65,177.64,66.82]
[1752896374996,2.99329321,177.65,177.64,66.16]
[1752896375595,2.99329321,177.65,177.64,66.82]
[1752896375773,0.06,177.65,177.64,66.82]
[1752896376094,2.99329321,177.65,177.64,66.82]
[1752896381985,2.99329321,177.65,177.64,154.42]
[1752896382174,0.06,177.65,177.64,154.42]
[1752896382375,2.99329321,177.65,177.64,154.42]
[1752896385706,0.06,177.65,177.64,154.42]
[1752896387909,0.06,177.65,177.64,154.45]
[1752896396928,0.06,177.65,177.64,160.07936275]
[1752896397923,0.06,177.65,177.64,154.45]
[1752896398528,0.06,177.65,177.64,160.07936275]
[1752896400830,0.06,177.69,177.68,26.0]
[1752896401124,0.06,177.69,177.68,153.5]
[1752896401339,0.06,177.69,177.68,154.2]
[1752896402217,0.06,177.69,177.68,159.82809545]
[1752896404530,0.06,177.69,177.68,154.2]
[1752896404716,0.06,177.69,177.68,153.5]
[1752896405229,3.65081961,177.69,177.68,87.54]
[1752896405536,3.65081961,177.69,177.68,39.94]
[1752896406333,2.99081961,177.69,177.68,39.94]
[1752896409411,0.06,177.69,177.68,40.6]
[1752896409714,2.99081961,177.69,177.68,40.6]
[1752896410223,2.99081961,177.69,177.68,39.94]
[1752896410932,0.06,177.69,177.68,40.6]
[1752896411124,2.99081961,177.69,177.68,40.6]
[1752896411539,2.99081961,177.69,177.68,128.14]
[1752896414112,2.99081961,177.69,177.68,127.48]
[1752896414426,2.99081961,177.69,177.68,87.54]
[1752896414634,2.99081961,177.69,177.68,127.64]
[1752896423033,3.67081961,177.69,177.68,127.64]
[1752896424036,0.74,177.69,177.68,127.54]
[1752896424234,3.67081961,177.69,177.68,127.54]
[1752896424654,2.99081961,177.69,177.68,127.54]
[1752896424957,1.93643795,177.69,177.68,127.54]
[1752896425663,8.24421666,177.69,177.68,87.54]
[1752896426839,15.74996846,177.69,177.68,87.54]
[1752896427037,12.23435901,177.69,177.68,87.54]
[1752896427561,9.30106886,177.69,177.68,87.54]
[1752896427856,3.67329015,177.69,177.65,128.2]
[1752896428055,2.93329015,177.66,177.65,127.54]
[1752896429534,2.93329015,177.66,177.65,128.2]
[1752896431664,6.36785198,177.69,177.65,128.23]
[1752896431838,2.93329015,177.66,177.65,128.23]
[1752896435839,0.68,177.68,177.65,128.23]
[1752896436059,2.93329015,177.66,177.65,128.23]
[1752896438667,2.93329015,177.66,177.65,127.57]
[1752896439069,0.68,177.68,177.65,128.26]
[1752896439377,2.93329015,177.66,177.65,128.26]
[1752896440554,0.06,177.69,177.65,128.26]
[1752896440745,0.06,177.69,177.67,26.0]
[1752896440746,2.93329015,177.68,177.67,26.0]
[1752896440950,2.93329015,177.68,177.67,66.67]
[1752896441158,2.93329015,177.68,177.67,154.21]
[1752896442267,2.93329015,177.68,177.67,153.52]
[1752896443948,0.06,177.69,177.67,154.21]
[1752896444150,2.93329015,177.68,177.67,154.21]
[1752896445942,0.06,177.69,177.67,159.83816647]
[1752896446169,0.06,177.69,177.68,0.69]
[1752896446460,0.06,177.69,177.68,1.25280954]
[1752896447057,0.06,177.69,177.68,88.79280954]
[1752896451575,1.9359348,177.69,177.68,88.79280954]
[1752896452675,0.06,177.69,177.68,88.79280954]
[1752896453052,0.06,177.69,177.68,94.42090499]
[1752896454654,0.06,177.69,177.68,88.79280954]
[1752896460969,1.9359348,177.69,177.68,88.79280954]
[1752896461183,1.9359348,177.69,177.68,88.23]
[1752896462172,0.06,177.69,177.68,88.23]
[1752896464697,0.03186,177.69,177.68,88.23]
[1752896466989,0.03186,177.69,177.68,94.42090499]
[1752896469491,0.03186,177.69,177.68,88.79280954]
[1752896469794,0.03186,177.69,177.68,127.34]
[1752896470193,1.9077948,177.69,177.68,127.32]
[1752896470517,0.03186,177.69,177.68,127.32]
[1752896470689,0.03186,177.69,177.68,128.01]
[1752896471199,0.03186,177.69,177.68,127.32]
[1752896472777,0.03186,177.69,177.68,87.54]
[1752896473084,0.03186,177.69,177.68,127.34]
[1752896473399,1.9077948,177.69,177.68,127.34]
[1752896474902,2.6277948,177.69,177.68,127.34]
[1752896475596,1.9077948,177.69,177.68,127.34]
[1752896476184,2.6277948,177.69,177.68,127.34]
[1752896476900,1.9077948,177.69,177.68,127.34]
[1752896478406,1.9077948,177.69,177.68,128.03]
[1752896479211,0.03186,177.69,177.68,128.03]
[1752896483711,2.6277948,177.69,177.68,87.54]
[1752896484015,2.6277948,177.69,177.68,127.26]
[1752896484213,1.9077948,177.69,177.68,127.26]
[1752896487015,0.03186,177.69,177.68,127.26]
[1752896487218,1.9077948,177.69,177.68,127.26]
[1752896489918,1.9077948,177.69,177.68,127.95]
[1752896490216,0.03186,177.69,177.68,127.95]
[1752896493396,1.9077948,177.69,177.68,127.26]
[1752896494540,1.9077948,177.69,177.68,153.26]
[1752896495212,0.03186,177.69,177.68,153.95]
[1752896496112,0.03186,177.69,177.68,153.26]
[1752896496317,1.9077948,177.69,177.68,153.29]
[1752896497854,1.9077948,177.69,177.68,153.96]
[1752896499639,1.9077948,177.69,177.68,153.29]
[1752896499940,2.6277948,177.69,177.68,153.29]
[1752896500528,1.9077948,177.69,177.68,153.29]
[1752896501146,0.03186,177.69,177.68,153.29]
[1752896501940,1.9077948,177.69,177.68,153.29]
[1752896502157,2.6277948,177.69,177.68,153.29]
[1752896503338,2.6277948,177.69,177.68,153.35]
[1752896504343,0.75186,177.69,177.68,113.57]
[1752896504641,2.6277948,177.69,177.68,153.35]
[1752896508451,1.9077948,177.69,177.68,153.35]
[1752896509327,1.9077948,177.69,177.68,113.57]
[1752896509524,1.9077948,177.69,177.68,153.31]